[Event "Catalan University-ch 2024"]
[Site "Barcelona"]
[Date "2024.02.24"]
[Round "3.2"]
[White "Castillo Dalmau, Albert"]
[Black "Alfonso Pellisa, Aaron"]
[Result "1/2-1/2"]
[ECO "A09"]
[WhiteElo "2313"]
[BlackElo "2090"]
[Annotator "ChessBase"]
[PlyCount "421"]
[EventDate "2024.02.24"]
[EventCountry "ESP"]
[SourceTitle "playchess.com"]
[Source "ChessBase"]
[SourceQuality "1"]
[TimeControl "600+2"]

1. Nf3 {[%emt 0:00:47]} d5 {[%emt 0:00:05]} 2. c4 {[%emt 0:00:17]} d4 {[%emt 0:00:17]} 3. b4 {[%emt 0:00:09]} e5 {[%emt 0:01:02]} 4. Nxe5 {[%emt 0:00:22]} Bd6 {[%emt 0:00:21]} 5. Nd3 {[%emt 0:00:18]} Nf6 {[%emt 0:00:11]} 6. Bb2 {[%emt 0:00:05]} O-O {[%emt 0:00:09]} 7. Na3 {[%emt 0:02:23]} Bf5 {[%emt 0:00:18]} 8. c5 {[%emt 0:00:37]} Bxd3 {[%emt 0:00:42]} 9. cxd6 {[%emt 0:00:56]} Re8 {[%emt 0:01:11]} 10. Qb3 {[%emt 0:00:25]} Bf5 {[%emt 0:00:35]} 11. dxc7 {[%emt 0:00:10]} Qxc7 {[%emt 0:00:01]} 12. Bxd4 {[%emt 0:00:15]} Nc6 {[%emt 0:00:28]} 13. Bxf6 {[%emt 0:00:39]} gxf6 {[%emt 0:00:01]} 14. b5 {[%emt 0:01:14]} Nd4 {[%emt 0:01:49]} 15. Qg3+ {[%emt 0:01:18]} Qxg3 {[%emt 0:00:01]} 16. hxg3 {[%emt 0:00:01]} Nxe2 {[%emt 0:00:12]} 17. Bxe2 {[%emt 0:00:01]} Bd3 {[%emt 0:00:01]} 18. O-O {[%emt 0:00:12]} Rxe2 {[%emt 0:00:09]} 19. Rfd1 {[%emt 0:00:10]} Rc8 {[%emt 0:00:08]} 20. f3 {[%emt 0:00:18]} b6 {[%emt 0:00:26]} 21. Rac1 {[%emt 0:00:03]} Rxc1 22. Rxc1 {[%emt 0:00:01]} Rxd2 {[%emt 0:00:05]} 23. Rc3 {[%emt 0:00:00]} Bf5 {[%emt 0:00:13]} 24. Nc4 {[%emt 0:00:02]} Rxa2 {[%emt 0:00:08]} 25. Nd6 {[%emt 0:00:01]} Be6 {[%emt 0:00:04]} 26. Rc7 {[%emt 0:00:05]} Kg7 {[%emt 0:00:42]} 27. g4 {[%emt 0:00:01]} a6 {[%emt 0:00:14]} 28. bxa6 {[%emt 0:00:04]} Rxa6 {[%emt 0:00:01]} 29. Rb7 {[%emt 0:00:03]} Ra1+ {[%emt 0:00:11]} 30. Kh2 {[%emt 0:00:00]} Rb1 {[%emt 0:00:02]} 31. Kg3 {[%emt 0:00:02]} Bd5 {[%emt 0:01:17]} 32. Rb8 Be6 {[%emt 0:00:00]} 33. Ne8+ {[%emt 0:00:02]} Kg6 {[%emt 0:00:00]} 34. Nc7 {[%emt 0:00:00]} Kg7 {[%emt 0:00:00]} 35. Rb7 {[%emt 0:00:02]} Bc4 {[%emt 0:00:00]} 36. Ne8+ {[%emt 0:00:03]} Kg6 {[%emt 0:00:00]} 37. Nd6 {[%emt 0:00:02]} Bd5 {[%emt 0:00:00]} 38. Rb8 {[%emt 0:00:02]} b5 {[%emt 0:00:00]} 39. Rxb5 {[%emt 0:00:03]} Rxb5 {[%emt 0:00:00]} 40. Nxb5 {[%emt 0:00:09]} Be6 {[%emt 0:00:18]} 41. Nd4 {[%emt 0:00:00]} f5 {[%emt 0:00:00]} 42. gxf5+ {[%emt 0:00:00]} Bxf5 {[%emt 0:00:00]} 43. Kf4 {[%emt 0:00:01]} Bd7 {[%emt 0:00:00]} 44. Ke5 {[%emt 0:00:02]} h5 {[%emt 0:00:00]} 45. Kd6 {[%emt 0:00:01]} Ba4 {[%emt 0:00:00]} 46. g3 {[%emt 0:00:01]} Bd1 {[%emt 0:00:00]} 47. Ke5 {[%emt 0:00:09]} f6+ {[%emt 0:00:00]} 48. Kf4 {[%emt 0:00:00]} Ba4 {[%emt 0:00:00]} 49. Ne6 {[%emt 0:00:00]} Bc6 {[%emt 0:00:00]} 50. Nd4 {[%emt 0:00:00]} Bd5 {[%emt 0:00:00]} 51. Nc2 {[%emt 0:00:00]} Bb3 {[%emt 0:00:00]} 52. Ne3 {[%emt 0:00:01]} Be6 {[%emt 0:00:00]} 53. Ng2 {[%emt 0:00:01]} Bd7 {[%emt 0:00:01]} 54. Nh4+ {[%emt 0:00:01]} Kh6 {[%emt 0:00:03]} 55. Ng2 {[%emt 0:00:04]} Kg6 {[%emt 0:00:01]} 56. Ne3 {[%emt 0:00:01]} Be6 {[%emt 0:00:01]} 57. Ke4 {[%emt 0:00:02]} Bd7 {[%emt 0:00:07]} 58. Kd5 {[%emt 0:00:01]} Bc8 {[%emt 0:00:03]} 59. Ke4 {[%emt 0:00:02]} Bb7+ {[%emt 0:00:02]} 60. Kf4 {[%emt 0:00:01]} Bc8 {[%emt 0:00:02]} 61. Nd5 {[%emt 0:00:01]} Be6 {[%emt 0:00:04]} 62. Ne7+ {[%emt 0:00:03]} Kf7 {[%emt 0:00:01]} 63. Nc6 {[%emt 0:00:02]} Kg6 {[%emt 0:00:03]} 64. Nd4 {[%emt 0:00:02]} Bd7 {[%emt 0:00:01]} 65. Ne2 {[%emt 0:00:04]} Be6 {[%emt 0:00:03]} 66. Ke3 {[%emt 0:00:02]} Bd7 {[%emt 0:00:02]} 67. Kf4 {[%emt 0:00:02]} Bb5 {[%emt 0:00:03]} 68. Ng1 {[%emt 0:00:02]} Bf1 {[%emt 0:00:05]} 69. Ke3 {[%emt 0:00:01]} Bb5 {[%emt 0:00:04]} 70. Nh3 {[%emt 0:00:02]} Bc6 {[%emt 0:00:02]} 71. Nf4+ {[%emt 0:00:01]} Kh6 {[%emt 0:00:02]} 72. Ne6 {[%emt 0:00:03]} Kg6 {[%emt 0:00:02]} 73. Kf4 {[%emt 0:00:02]} Bd5 {[%emt 0:00:04]} 74. Nd4 {[%emt 0:00:02]} Bb7 {[%emt 0:00:04]} 75. Ke3 {[%emt 0:00:04]} Bd5 {[%emt 0:00:01]} 76. f4 {[%emt 0:00:02]} f5 {[%emt 0:00:04]} 77. Kd3 {[%emt 0:00:03]} Be4+ {[%emt 0:00:02]} 78. Kc4 {[%emt 0:00:01]} h4 {[%emt 0:00:01]} 79. gxh4 {[%emt 0:00:01]} Kh5 {[%emt 0:00:01]} 80. Kc5 {[%emt 0:00:05]} Kxh4 {[%emt 0:00:01]} 81. Kd6 {[%emt 0:00:00]} Kg3 {[%emt 0:00:04]} 82. Ke5 {[%emt 0:00:01]} Kg4 {[%emt 0:00:00]} 83. Ne6 {[%emt 0:00:04]} Bc2 {[%emt 0:00:02]} 84. Nd8 {[%emt 0:00:03]} Be4 {[%emt 0:00:02]} 85. Nf7 {[%emt 0:00:01]} Kh5 {[%emt 0:00:05]} 86. Nd6 {[%emt 0:00:01]} Kg6 {[%emt 0:00:03]} 87. Ne8 {[%emt 0:00:05]} Bb1 {[%emt 0:00:02]} 88. Nc7 {[%emt 0:00:01]} Be4 {[%emt 0:00:02]} 89. Ne6 {[%emt 0:00:01]} Bb1 {[%emt 0:00:01]} 90. Nf8+ {[%emt 0:00:01]} Kf7 {[%emt 0:00:01]} 91. Nd7 {[%emt 0:00:01]} Kg6 {[%emt 0:00:01]} 92. Nb6 {[%emt 0:00:02]} Be4 {[%emt 0:00:02]} 93. Nc4 {[%emt 0:00:01]} Bb1 {[%emt 0:00:02]} 94. Ne3 {[%emt 0:00:02]} Bd3 {[%emt 0:00:02]} 95. Nd5 {[%emt 0:00:01]} Bb1 {[%emt 0:00:02]} 96. Ne7+ {[%emt 0:00:01]} Kf7 {[%emt 0:00:01]} 97. Nxf5 {[%emt 0:00:01]} Kg6 {[%emt 0:00:03]} 98. Nd6 {[%emt 0:00:02]} Kg7 {[%emt 0:00:03]} 99. Ke6 {[%emt 0:00:02]} Kg6 {[%emt 0:00:01]} 100. Ke5 {[%emt 0:00:04]} Kg7 {[%emt 0:00:02]} 101. Ke6 {[%emt 0:00:06]} Kg6 {[%emt 0:00:01]} 102. Nb5 {[%emt 0:00:04]} Bf5+ {[%emt 0:00:03]} 103. Ke5 {[%emt 0:00:00]} Bd3 {[%emt 0:00:02]} 104. Nc3 {[%emt 0:00:03]} Kf7 {[%emt 0:00:04]} 105. Nd5 {[%emt 0:00:01]} Bb1 {[%emt 0:00:02]} 106. Ne3 {[%emt 0:00:03]} Bd3 {[%emt 0:00:01]} 107. Kd4 {[%emt 0:00:01]} Bh7 {[%emt 0:00:03]} 108. Ng4 {[%emt 0:00:04]} Ke6 {[%emt 0:00:02]} 109. Ne3 {[%emt 0:00:03]} Bg6 {[%emt 0:00:02]} 110. Kc5 {[%emt 0:00:02]} Be4 {[%emt 0:00:02]} 111. Kd4 {[%emt 0:00:01]} Bg6 {[%emt 0:00:01]} 112. Kc3 {[%emt 0:00:01]} Be4 {[%emt 0:00:01]} 113. Kd2 {[%emt 0:00:00]} Kf6 {[%emt 0:00:02]} 114. Ke1 {[%emt 0:00:01]} Bc6 {[%emt 0:00:02]} 115. Kf2 {[%emt 0:00:01]} Bd7 {[%emt 0:00:01]} 116. Kg3 {[%emt 0:00:00]} Be6 {[%emt 0:00:02]} 117. Kf3 {[%emt 0:00:01]} Bc8 {[%emt 0:00:00]} 118. Nd5+ {[%emt 0:00:01]} Ke6 {[%emt 0:00:03]} 119. Ne3 {[%emt 0:00:01]} Kf6 {[%emt 0:00:01]} 120. Ke4 {[%emt 0:00:02]} Bb7+ {[%emt 0:00:01]} 121. Kd4 {[%emt 0:00:00]} Bc8 {[%emt 0:00:01]} 122. Ke4 {[%emt 0:00:03]} Bb7+ {[%emt 0:00:01]} 123. Kd4 {[%emt 0:00:01]} Bc8 {[%emt 0:00:00]} 124. Kd3 {[%emt 0:00:00]} Be6 {[%emt 0:00:04]} 125. Ke4 {[%emt 0:00:03]} Bc8 {[%emt 0:00:02]} 126. Nd5+ {[%emt 0:00:02]} Kf7 {[%emt 0:00:03]} 127. Ke5 {[%emt 0:00:00]} Bg4 {[%emt 0:00:03]} 128. Ne3 {[%emt 0:00:02]} Bh3 {[%emt 0:00:02]} 129. Nf5 {[%emt 0:00:01]} Bf1 {[%emt 0:00:04]} 130. Nd6+ {[%emt 0:00:02]} Ke7 {[%emt 0:00:01]} 131. f5 {[%emt 0:00:01]} Bd3 {[%emt 0:00:03]} 132. f6+ {[%emt 0:00:01]} Kf8 {[%emt 0:00:01]} 133. Ke6 {[%emt 0:00:09]} Bg6 {[%emt 0:00:03]} 134. Nc8 {[%emt 0:00:04]} Bf7+ {[%emt 0:00:03]} 135. Ke5 {[%emt 0:00:01]} Bh5 {[%emt 0:00:03]} 136. Ne7 {[%emt 0:00:01]} Bf7 {[%emt 0:00:02]} 137. Nf5 {[%emt 0:00:01]} Bg6 {[%emt 0:00:02]} 138. Nd4 {[%emt 0:00:03]} Bf7 {[%emt 0:00:02]} 139. Kf5 {[%emt 0:00:02]} Bd5 {[%emt 0:00:02]} 140. Ke5 {[%emt 0:00:05]} Bf7 {[%emt 0:00:01]} 141. Nf3 {[%emt 0:00:02]} Bh5 {[%emt 0:00:03]} 142. Ng5 {[%emt 0:00:00]} Bg6 {[%emt 0:00:02]} 143. Kd6 {[%emt 0:00:02]} Bh5 {[%emt 0:00:02]} 144. Ke5 {[%emt 0:00:03]} Bg6 {[%emt 0:00:01]} 145. Ne6+ {[%emt 0:00:03]} Kf7 {[%emt 0:00:04]} 146. Nd8+ {[%emt 0:00:02]} Kf8 {[%emt 0:00:01]} 147. Nc6 {[%emt 0:00:03]} Bf7 {[%emt 0:00:03]} 148. Kf4 {[%emt 0:00:01]} Bd5 {[%emt 0:00:01]} 149. Ne5 {[%emt 0:00:02]} Be6 {[%emt 0:00:01]} 150. Kg5 {[%emt 0:00:02]} Bd5 {[%emt 0:00:02]} 151. Kf5 {[%emt 0:00:02]} Ba2 {[%emt 0:00:02]} 152. Ng6+ {[%emt 0:00:06]} Kf7 {[%emt 0:00:02]} 153. Nf4 {[%emt 0:00:03]} Bb3 {[%emt 0:00:02]} 154. Ke5 {[%emt 0:00:02]} Ba2 {[%emt 0:00:01]} 155. Nd3 {[%emt 0:00:01]} Bb3 {[%emt 0:00:02]} 156. Nc5 {[%emt 0:00:01]} Ba2 {[%emt 0:00:01]} 157. Ne4 {[%emt 0:00:00]} Kf8 {[%emt 0:00:04]} 158. Nd6 {[%emt 0:00:07]} Bb3 {[%emt 0:00:02]} 159. Kf5 {[%emt 0:00:02]} Ba2 {[%emt 0:00:02]} 160. Kg5 {[%emt 0:00:02]} Bb3 {[%emt 0:00:01]} 161. Nf5 {[%emt 0:00:02]} Ba2 {[%emt 0:00:02]} 162. Nd6 {[%emt 0:00:02]} Bb3 {[%emt 0:00:02]} 163. Ne4 {[%emt 0:00:03]} Ba2 {[%emt 0:00:01]} 164. Nc5 {[%emt 0:00:01]} Bc4 {[%emt 0:00:02]} 165. Kf5 {[%emt 0:00:00]} Kf7 {[%emt 0:00:02]} 166. Ke5 {[%emt 0:00:01]} Ba2 {[%emt 0:00:01]} 167. Ne4 {[%emt 0:00:01]} Kf8 {[%emt 0:00:03]} 168. Nd2 {[%emt 0:00:04]} Bf7 {[%emt 0:00:02]} 169. Ne4 {[%emt 0:00:05]} Ba2 {[%emt 0:00:02]} 170. Ng5 {[%emt 0:00:02]} Bb3 {[%emt 0:00:01]} 171. Ne6+ {[%emt 0:00:02]} Kf7 {[%emt 0:00:02]} 172. Nc5 {[%emt 0:00:00]} Ba2 {[%emt 0:00:01]} 173. Nd3 {[%emt 0:00:01]} Kf8 {[%emt 0:00:02]} 174. Nb4 {[%emt 0:00:02]} Bf7 {[%emt 0:00:01]} 175. Kd6 {[%emt 0:00:02]} Bb3 {[%emt 0:00:03]} 176. Nc6 {[%emt 0:00:01]} Kf7 {[%emt 0:00:02]} 177. Ke5 {[%emt 0:00:01]} Kf8 {[%emt 0:00:02]} 178. Nd4 {[%emt 0:00:01]} Ba2 {[%emt 0:00:01]} 179. Ne6+ {[%emt 0:00:01]} Kf7 {[%emt 0:00:01]} 180. Ng5+ {[%emt 0:00:02]} Kf8 {[%emt 0:00:01]} 181. Kd6 {[%emt 0:00:07]} Bb3 {[%emt 0:00:02]} 182. Ne4 {[%emt 0:00:02]} Kf7 {[%emt 0:00:05]} 183. Ke5 {[%emt 0:00:01]} Ba2 {[%emt 0:00:02]} 184. Nc5 {[%emt 0:00:02]} Kf8 {[%emt 0:00:02]} 185. Nd3 {[%emt 0:00:05]} Kf7 {[%emt 0:00:02]} 186. Nb4 {[%emt 0:00:03]} Bb3 {[%emt 0:00:02]} 187. Nc6 {[%emt 0:00:01]} Kf8 {[%emt 0:00:02]} 188. Nd4 {[%emt 0:00:04]} Ba2 {[%emt 0:00:02]} 189. Kf5 {[%emt 0:00:01]} Bb1+ {[%emt 0:00:02]} 190. Kg5 {[%emt 0:00:01]} Ba2 {[%emt 0:00:02]} 191. Nf5 {[%emt 0:00:01]} Kf7 {[%emt 0:00:02]} 192. Nh6+ {[%emt 0:00:01]} Kf8 {[%emt 0:00:01]} 193. Kg6 {[%emt 0:00:02]} Bb1+ {[%emt 0:00:01]} 194. Kg5 {[%emt 0:00:01]} Ba2 {[%emt 0:00:01]} 195. Nf5 {[%emt 0:00:03]} Kf7 {[%emt 0:00:01]} 196. Nd6+ {[%emt 0:00:02]} Kf8 {[%emt 0:00:02]} 197. Ne4 {[%emt 0:00:04]} Kf7 {[%emt 0:00:03]} 198. Nc3 {[%emt 0:00:02]} Bb3 {[%emt 0:00:01]} 199. Nb5 {[%emt 0:00:02]} Kf8 {[%emt 0:00:02]} 200. Nd4 {[%emt 0:00:02]} Ba2 {[%emt 0:00:02]} 201. Kf5 {[%emt 0:00:02]} Bc4 {[%emt 0:00:02]} 202. Ke5 {[%emt 0:00:01]} Ba2 {[%emt 0:00:01]} 203. Nf5 {[%emt 0:00:01]} Bf7 {[%emt 0:00:04]} 204. Nd6 {[%emt 0:00:03]} Ba2 {[%emt 0:00:01]} 205. Ne4 {[%emt 0:00:00]} Bf7 {[%emt 0:00:02]} 206. Nc5 {[%emt 0:00:01]} Ba2 {[%emt 0:00:02]} 207. Nd7+ {[%emt 0:00:00]} Kf7 {[%emt 0:00:00]} 208. Nc5 {[%emt 0:00:03]} Bc4 {[%emt 0:00:06]} 209. Ne4 {[%emt 0:00:01]} Ba2 {[%emt 0:00:02]} 210. Nd6+ {[%emt 0:00:01]} Kf8 {[%emt 0:00:00]} 211. Kd4 {[%emt 0:00:00]} 1/2-1/2

[Event "Catalan University-ch 2024"]
[Site "Barcelona"]
[Date "2024.02.24"]
[Round "3.3"]
[White "Marzo Pie, Xavier"]
[Black "Roca Planas, Edgar"]
[Result "1-0"]
[ECO "E33"]
[WhiteElo "2043"]
[BlackElo "2248"]
[Annotator "TA"]
[PlyCount "113"]
[EventDate "2024.02.24"]
[EventCountry "ESP"]
[SourceTitle "playchess.com"]
[Source "ChessBase"]
[SourceQuality "1"]
[TimeControl "600+2"]

{[%evp 17,113,31,40,27,22,11,8,13,24,20,25,8,15,0,0,0,16,-37,-31,-118,-97,-115,-85,-138,-133,-200,-111,-90,-101,-114,-100,-170,172,171,195,158,177,164,208,194,241,226,232,133,133,108,114,114,87,47,63,66,45,10,523,18,126,82,204,94,93,95,97,85,807,185,284,0,214,0,0,0,364,357,348,317,795,778,1984,908,1625,1554,1943,1877,29976,29978,29978,29979,29989,29990,29996,29993,29994,29995,29995,29995,29996,29996]} 1. d4 {[%emt 0:00:03]} Nf6 {[%emt 0:00:03]} 2. c4 {[%emt 0:00:01]} e6 {[%emt 0:00:02]} 3. Nc3 {[%emt 0:00:01]} Bb4 {[%emt 0:00:02]} 4. Qc2 {[%emt 0:00:07]} Nc6 {[%emt 0:00:01]} 5. Nf3 {[%emt 0:00:03]} d6 {[%emt 0:00:02]} 6. Bd2 {[%emt 0:00:07]} O-O {[%emt 0:00:09]} 7. a3 {[%emt 0:00:01]} Bxc3 {[%emt 0:00:02]} 8. Bxc3 {[%emt 0:00:01]} Qe7 {[%emt 0:00:01]} 9. e3 {[%emt 0:00:26]} a5 {[%emt 0:00:01]} 10. b3 {[%emt 0:00:21]} e5 {[%emt 0:00:01]} 11. dxe5 {[%emt 0:00:06]} dxe5 {[%emt 0:00:14]} 12. Be2 {[%emt 0:00:03] The position is equal.} Bg4 {[%emt 0:00:11]} 13. O-O {[%emt 0:00:27]} Rfe8 {[%emt 0:00:34]} 14. Bb2 {[%emt 0:00:35]} Bh5 {[%emt 0:00:37]} 15. Rad1 {[%emt 0:00:01][%cal Of3e5]} Bg6 {[%emt 0:00:01]} 16. Qc1 {[%emt 0:00:06]} Ne4 {[%emt 0:00:28]} 17. Nd2 {[%emt 0:00:24]} ({White should try} 17. Rd5 $11) 17... Nc5 $15 {[%emt 0:00:01]} 18. f3 {[%emt 0:00:46]} (18. Qc3 $15) 18... Rad8 {[%emt 0:00:25]} 19. e4 {[%emt 0:00:16]} Qg5 {[%emt 0:00:29]} 20. Qc3 {[%emt 0:00:21]} (20. Rfe1 $142) 20... Nd4 {[%emt 0:00:28] A dynamic duo of knights.} 21. Rfe1 {[%emt 0:00:23]} (21. Rf2 $17) 21... Nxe2+ {[%emt 0:01:09]} (21... Ncxb3 $19 22. Bc1 Nxe2+ 23. Rxe2 a4) 22. Rxe2 $17 {[%emt 0:00:02][%cal Oc3c2]} Rd3 {[%emt 0:00:01]} 23. Qc2 {[%emt 0:00:13]} Red8 {[%emt 0:00:00][%cal Oc5e4]} 24. Bc1 {[%emt 0:00:40]} (24. Bc3 $17) 24... Ne6 $4 {[%emt 0:00:01][%mdl 8192]} (24... Nxb3 $19 25. Nf1 Nxc1 (25... Rxd1 $2 26. Bxg5 Nd4 27. Qxd1 $18) 26. Qxc1 Qxc1 27. Rxc1 Rxa3) 25. Nf1 $1 $18 {[%emt 0:00:27][%csl LRd3,LRg5]} Rxd1 {[%emt 0:00:41]} 26. Bxg5 {[%emt 0:00:01]} Nxg5 {[%emt 0:00:00]} 27. Kf2 {[%emt 0:00:17]} R1d3 {[%emt 0:00:17]} 28. Rd2 {[%emt 0:00:14]} Rxd2+ {[%emt 0:00:04]} (28... Bxe4 $142 29. Rxd3 Bxd3) 29. Nxd2 {[%emt 0:00:01]} Ne6 {[%emt 0:00:00]} 30. Qc3 {[%emt 0:00:31]} (30. c5 $1 $18) 30... b6 $16 {[%emt 0:00:01]} 31. b4 {[%emt 0:00:14]} axb4 {[%emt 0:00:07]} 32. axb4 {[%emt 0:00:01]} (32. Qxe5 $2 Rxd2+ 33. Ke3 Rxg2 34. axb4 Rg1 $19) 32... f6 {[%emt 0:00:03]} 33. Nb3 {[%emt 0:00:08]} Bf7 {[%emt 0:00:01]} 34. c5 {[%emt 0:00:21]} b5 {[%emt 0:00:06]} 35. c6 {[%emt 0:00:12] Nc5 is the strong threat.} Nd4 $2 {[%emt 0:00:01][%mdl 8192]} (35... h6 $11) 36. Na5 $2 {[%emt 0:00:24]} ({Only move:} 36. Nxd4 $18 Rxd4 37. Qc5) 36... Rd6 {[%emt 0:00:20]} (36... Ne6 $1 $11 {keeps the balance.}) 37. Qc5 {[%emt 0:00:09] Hoping for Qa7.} Be8 {[%emt 0:00:01] [#]} (37... h5 $16) 38. f4 {[%emt 0:00:27]} exf4 {[%emt 0:00:21][%cal Oh7h6]} 39. e5 {[%emt 0:00:16]} fxe5 {[%emt 0:00:27]} 40. Qxe5 {[%emt 0:00:04][%cal Re5e8]} Ne6 $2 {[%emt 0:00:07][%mdl 8192]} (40... Bf7 $16) 41. Qxb5 $2 {[%emt 0:00:12]} (41. Nb7 Rxc6 42. Nd8 (42. Qxb5 $2 Rc2+ $19)) 41... Rd2+ {[%emt 0:00:04]} (41... g6 {was worth a try.} 42. h3 h6) 42. Kf1 $2 {[%emt 0:00:19]} ({White must play} 42. Ke1 $18 Rd6 43. Qe5) 42... Bg6 $2 {[%emt 0:00:01] [#]} (42... Rd1+ $11 {and Black has nothing to worry.} 43. Kf2 Rd4) 43. Qb8+ $2 {[%emt 0:00:09]} (43. Ke1 $1 $18 {[%cal Re1d2]} Rd3 44. Nc4) 43... Kf7 {[%emt 0:00:01] Threatens to win with ...Bd3+.} 44. Nb7 {[%emt 0:00:06] Black must now prevent Nc5.} Bd3+ $2 {[%emt 0:00:00][%mdl 8192]} (44... Rd1+ $1 $11 45. Ke2 Bh5+ 46. Kf2 Rd2+ 47. Ke1 Rd1+ 48. Kf2 Rd2+ 49. Ke1 Rd1+ 50. Kf2) 45. Ke1 $18 {[%emt 0:01:25]} Re2+ 46. Kd1 {[%emt 0:00:00] Nc5 would now be deadly.} Rxg2 $2 {[%emt 0:01:19]} (46... Kf6 47. Nc5 Nxc5 48. Qxc7 (48. bxc5 Re7 $18) 48... Ne6) 47. Nd8+ Nxd8 {[%emt 0:00:01]} 48. Qxd8 {[%emt 0:00:00][%mdl 4096] Endgame. KQ-KRB} (48. Qxc7+ $142 Kg6 49. Qd6+ (49. Qxd8 Bc2+ 50. Ke1 Rxh2 $18) (49. Qxf4 Ne6 $18) 49... Kh5 50. c7 (50. Qxd8 Bf5 $18) (50. Qxd3 Rg1+ 51. Kd2 Nxc6 $18) 50... Be2+ 51. Ke1) 48... Be2+ {[%emt 0:00:09]} 49. Ke1 {[%emt 0:00:00]} f3 {[%emt 0:00:01]} 50. Qxc7+ {[%emt 0:00:00]} Kg6 {[%emt 0:00:00]} 51. Qb6 {[%emt 0:00:00] White mates.} Kh5 {[%emt 0:00:38]} 52. c7 {[%emt 0:00:00]} Bc4 {[%emt 0:00:49]} 53. Qc5+ {[%emt 0:00:00]} (53. c8=B f2+ $14) 53... Kg4 {[%emt 0:00:01]} 54. Qxc4+ {[%emt 0:00:00]} Kh3 {[%emt 0:00:01]} 55. c8=Q+ {[%emt 0:00:00]} Kxh2 {[%emt 0:00:04]} 56. Qh4+ {[%emt 0:00:00]} Kg1 {[%emt 0:00:01]} 57. Qc5+ {[%emt 0:00:00] Weighted Error Value: White=0.65/Black=0.70.  Loses game:     	---       	Black=4      Missed win:     	White=2     	Black=1      Mistake:       	White=8     	Black=6      Inaccurate:     	White=3     	Black=1      OK:         	White=10    	Black=10     Best:        	White=4     	Black=5} (57. Qxh7 f2+ 58. Ke2 (58. Kd2 f1=Q+ 59. Ke3 Qe2+ 60. Kd4 Qb2+ 61. Kd5 Rd2+ 62. Kc6 Qc3+ 63. Kb5 Qxc8 $19) 58... f1=Q+ 59. Ke3 Qe2+ 60. Kd4 Qb2+ 61. Ke4 (61. Qc3 Rg4+ 62. Kd5 Qxc3 63. Qb1+ Kh2 64. Qa2+ Kg3 65. Qa7 Rg5+ 66. Kd6 Qf6+ 67. Kc7 Qe7+ 68. Kb6 Rg6+ 69. Kb5 Qxa7 70. Kc4 Rc6+ 71. Kb3 Qa1 72. b5 Rc3+ 73. Kb4 Qa3#) (61. Kd5 Rd2+ 62. Kc6 Qc3+ 63. Kb5 Qxc8 $19) 61... Qb1+ (61... Qxb4+ 62. Kd5 $11) 62. Kd5 Qxh7 $19) 1-0

[Event "Catalan University-ch 2024"]
[Site "Barcelona"]
[Date "2024.02.24"]
[Round "3.4"]
[White "Masalias Mira, Marc"]
[Black "Garcia Escoda, Marc"]
[Result "0-1"]
[ECO "B29"]
[WhiteElo "1826"]
[BlackElo "2074"]
[Annotator "NA RC"]
[PlyCount "68"]
[EventDate "2024.02.24"]
[EventCountry "ESP"]
[SourceTitle "playchess.com"]
[Source "ChessBase"]
[SourceQuality "1"]
[TimeControl "600+2"]

1. e4 {[%emt 0:00:01]} c5 {[%emt 0:00:01]} 2. Nf3 {[%emt 0:00:01]} Nf6 {[%emt 0:00:03]} 3. e5 {[%emt 0:00:12]} Nd5 {[%emt 0:00:01]} 4. c4 {[%emt 0:00:11]} Nc7 {[%emt 0:00:03]} 5. d4 {[%emt 0:00:08]} cxd4 {[%emt 0:00:08]} 6. Nxd4 {[%emt 0:00:01]} Nc6 {[%emt 0:00:01]} 7. Nxc6 {[%emt 0:00:19]} bxc6 {[%emt 0:00:02]} 8. Be2 {[%emt 0:00:10]} g6 {[%emt 0:00:04]} 9. O-O {[%emt 0:00:10]} Bg7 {[%emt 0:00:01]} 10. f4 {[%emt 0:00:09]} O-O {[%emt 0:00:03]} 11. Nc3 {[%emt 0:00:05]} Rb8 {[%emt 0:00:19]} 12. Qc2 {[%emt 0:00:25]} d6 {[%emt 0:00:03]} 13. Be3 {[%emt 0:00:42]} Bf5 {[%emt 0:00:43]} 14. Qc1 {[%emt 0:02:43]} dxe5 {[%emt 0:00:12]} 15. fxe5 {[%emt 0:00:08]} a5 {[%emt 0:01:11]} 16. Bf3 {[%emt 0:00:21]} Bxe5 {[%emt 0:01:14]} 17. Rd1 {[%emt 0:00:11]} Qc8 {[%emt 0:00:11]} 18. Bxc6 {[%emt 0:00:08]} Na6 {[%emt 0:00:22]} 19. Bd5 {[%emt 0:00:14]} Nb4 {[%emt 0:00:13]} 20. Bh6 {[%emt 0:00:27]} Rd8 {[%emt 0:01:05]} 21. Qe3 {[%emt 0:00:11]} Qc7 {[%emt 0:00:27]} 22. Nb5 {[%emt 0:01:22]} Rxb5 {[%emt 0:00:22]} 23. Bxf7+ {[%emt 0:00:27]} Kxf7 {[%emt 0:00:01]} 24. cxb5 {[%emt 0:00:19]} e6 {[%emt 0:01:33]} 25. b6 {[%emt 0:00:16]} Bxh2+ {[%emt 0:01:29]} 26. Kh1 {[%emt 0:00:10]} Qb8 {[%emt 0:00:26]} 27. Rxd8 {[%emt 0:00:19]} Qxd8 {[%emt 0:00:01]} 28. Rf1 {[%emt 0:00:24]} Qh4 {[%emt 0:00:18]} 29. Bg5 {[%emt 0:00:05]} Qh5 {[%emt 0:00:07]} 30. g4 {[%emt 0:00:20]} Bf4+ {[%emt 0:00:01]} 31. Kg2 {[%emt 0:00:15]} Qh2+ {[%emt 0:00:04]} 32. Kf3 {[%emt 0:00:07]} Qg3+ {[%emt 0:00:01]} 33. Ke2 {[%emt 0:00:02]} Qxe3+ {[%emt 0:00:01]} 34. Kd1 {[%emt 0:00:07]} Qd2# 0-1